[Event "Titled Tuesday Blitz February 28 Early 2023"]
[White "Balla, Tamas-Kristof"]
[Black "Ruiz Aguilar, Pablo Alexander"]
[WhiteFideId "1208497"]
[BlackFideId "4401352"]
[WhiteElo "2334"]
[BlackElo "2138"]
[Result "1-0"]
[Round "07"]
[TimeControl "180+2"]
[Date "2023.02.28"]
[WhiteClock "0:00:25"]
[BlackClock "0:00:01"]

1. e4 {[%clk 0:03:00]}  c5 {[%clk 0:02:59]} 2. Nf3 {[%clk 0:02:54]}  e6 {[%clk 0:02:58]} 3. c3 {[%clk 0:02:54]}  d5 {[%clk 0:02:58]} 4. exd5 {[%clk 0:02:53]}  Qxd5 {[%clk 0:02:58]} 5. d4 {[%clk 0:02:54]}  Nf6 {[%clk 0:02:57]} 6. Be3 {[%clk 0:02:53]}  cxd4 {[%clk 0:02:56]} 7. cxd4 {[%clk 0:02:53]}  Nc6 {[%clk 0:02:56]} 8. Nc3 {[%clk 0:02:53]}  Qd6 {[%clk 0:02:56]} 9. Bd3 {[%clk 0:02:54]}  Be7 {[%clk 0:02:56]} 10. O-O {[%clk 0:02:54]}  O-O {[%clk 0:02:56]} 11. a3 {[%clk 0:02:54]}  b6 {[%clk 0:02:55]} 12. Qe2 {[%clk 0:02:54]}  Bb7 {[%clk 0:02:54]} 13. Rad1 {[%clk 0:02:54]}  Rac8 {[%clk 0:02:53]} 14. Bb1 {[%clk 0:02:54]}  Rfd8 {[%clk 0:02:52]} 15. Rfe1 {[%clk 0:02:54]}  g6 {[%clk 0:02:51]} 16. Bg5 {[%clk 0:02:47]}  Nd5 {[%clk 0:02:49]} 17. Ne4 {[%clk 0:02:38]}  Qc7 {[%clk 0:02:40]} 18. Bh6 {[%clk 0:02:29]}  Nf4 {[%clk 0:02:33]} 19. Qd2 {[%clk 0:02:17]}  Nd5 {[%clk 0:02:29]} 20. h4 {[%clk 0:01:51]}  Bf8 {[%clk 0:02:11]} 21. h5 {[%clk 0:01:45]}  f5 {[%clk 0:02:09]} 22. Nc3 {[%clk 0:01:10]}  Bxh6 {[%clk 0:01:42]} 23. Qxh6 {[%clk 0:01:07]}  Qg7 {[%clk 0:01:43]} 24. Qxg7+ {[%clk 0:01:02]}  Kxg7 {[%clk 0:01:43]} 25. Rxe6 {[%clk 0:01:02]}  Nxc3 {[%clk 0:01:41]} 26. bxc3 {[%clk 0:01:03]}  Re8 {[%clk 0:01:41]} 27. Rde1 {[%clk 0:01:02]}  Rxe6 {[%clk 0:01:40]} 28. Rxe6 {[%clk 0:01:03]}  Rc7 {[%clk 0:01:40]} 29. hxg6 {[%clk 0:01:02]}  hxg6 {[%clk 0:01:40]} 30. Nh4 {[%clk 0:01:02]}  Ne7 {[%clk 0:01:39]} 31. c4 {[%clk 0:00:57]}  g5 {[%clk 0:01:25]} 32. Nxf5+ {[%clk 0:00:52]}  Nxf5 {[%clk 0:01:19]} 33. Bxf5 {[%clk 0:00:53]}  Bc8 {[%clk 0:01:19]} 34. Rg6+ {[%clk 0:00:47]}  Kf7 {[%clk 0:01:13]} 35. Bd3 {[%clk 0:00:47]}  g4 {[%clk 0:01:11]} 36. Rh6 {[%clk 0:00:44]}  Re7 {[%clk 0:01:00]} 37. Rh7+ {[%clk 0:00:44]}  Kf6 {[%clk 0:01:00]} 38. Rxe7 {[%clk 0:00:44]}  Kxe7 {[%clk 0:01:01]} 39. Kf1 {[%clk 0:00:43]}  Kf6 {[%clk 0:00:56]} 40. Ke2 {[%clk 0:00:44]}  Kg5 {[%clk 0:00:52]} 41. Ke3 {[%clk 0:00:42]}  Bb7 {[%clk 0:00:51]} 42. f3 {[%clk 0:00:41]}  gxf3 {[%clk 0:00:50]} 43. gxf3 {[%clk 0:00:42]}  Kf6 {[%clk 0:00:50]} 44. Be4 {[%clk 0:00:41]}  Bc8 {[%clk 0:00:50]} 45. c5 {[%clk 0:00:37]}  bxc5 {[%clk 0:00:46]} 46. dxc5 {[%clk 0:00:38]}  Ke5 {[%clk 0:00:46]} 47. Kd3 {[%clk 0:00:38]}  Be6 {[%clk 0:00:44]} 48. Kc3 {[%clk 0:00:35]}  Bf7 {[%clk 0:00:39]} 49. Kb4 {[%clk 0:00:35]}  Ke6 {[%clk 0:00:26]} 50. Ka5 {[%clk 0:00:35]}  Kd7 {[%clk 0:00:17]} 51. Ka6 {[%clk 0:00:35]}  Kc7 {[%clk 0:00:18]} 52. Kxa7 {[%clk 0:00:36]}  Bc4 {[%clk 0:00:18]} 53. a4 {[%clk 0:00:33]}  Bb3 {[%clk 0:00:16]} 54. a5 {[%clk 0:00:33]}  Bc4 {[%clk 0:00:16]} 55. f4 {[%clk 0:00:29]}  Bb5 {[%clk 0:00:12]} 56. f5 {[%clk 0:00:27]}  Bc4 {[%clk 0:00:12]} 57. f6 {[%clk 0:00:27]}  Bf7 {[%clk 0:00:08]} 58. Ka6 {[%clk 0:00:25]}  Bc4+ {[%clk 0:00:07]} 59. Ka7 {[%clk 0:00:26]}  Bf7 {[%clk 0:00:08]} 60. Bf3 {[%clk 0:00:26]}  Kc8 {[%clk 0:00:01]} 61. Kb6 {[%clk 0:00:25]} 1-0


[Site "https://www.chess.com"]

[Event "Titled Tuesday Blitz February 28 Early 2023"]
[White "Rottenwohrer Suarez, Juan"]
[Black "Jiganchine, Roman"]
[WhiteFideId "32068182"]
[BlackFideId "2603667"]
[WhiteElo "2174"]
[BlackElo "2287"]
[Result "1/2-1/2"]
[Round "07"]
[TimeControl "180+2"]
[Date "2023.02.28"]
[WhiteClock "0:00:04"]
[BlackClock "0:00:04"]

1. e4 {[%clk 0:03:00]}  c6 {[%clk 0:02:57]} 2. d4 {[%clk 0:02:59]}  d5 {[%clk 0:02:57]} 3. exd5 {[%clk 0:03:00]}  cxd5 {[%clk 0:02:57]} 4. Nf3 {[%clk 0:03:01]}  Nc6 {[%clk 0:02:54]} 5. c4 {[%clk 0:03:01]}  Nf6 {[%clk 0:02:54]} 6. Nc3 {[%clk 0:03:02]}  Bg4 {[%clk 0:02:53]} 7. Be2 {[%clk 0:02:59]}  e6 {[%clk 0:02:53]} 8. h3 {[%clk 0:02:59]}  Bh5 {[%clk 0:02:51]} 9. c5 {[%clk 0:02:55]}  Be7 {[%clk 0:02:49]} 10. O-O {[%clk 0:02:56]}  O-O {[%clk 0:02:49]} 11. Be3 {[%clk 0:02:52]}  Re8 {[%clk 0:02:45]} 12. a3 {[%clk 0:02:48]}  a5 {[%clk 0:02:44]} 13. Re1 {[%clk 0:02:18]}  Ne4 {[%clk 0:02:42]} 14. Qc2 {[%clk 0:01:55]}  Bg6 {[%clk 0:02:29]} 15. Bd3 {[%clk 0:01:53]}  Nxc3 {[%clk 0:02:20]} 16. Bxg6 {[%clk 0:01:51]}  Ne2+ {[%clk 0:02:14]} 17. Rxe2 {[%clk 0:01:47]}  hxg6 {[%clk 0:02:13]} 18. b3 {[%clk 0:01:44]}  Bf6 {[%clk 0:02:11]} 19. Rb1 {[%clk 0:01:43]}  Qc7 {[%clk 0:01:59]} 20. b4 {[%clk 0:01:21]}  e5 {[%clk 0:01:46]} 21. Nxe5 {[%clk 0:01:19]}  Bxe5 {[%clk 0:01:42]} 22. dxe5 {[%clk 0:01:18]}  Qxe5 {[%clk 0:01:38]} 23. Ree1 {[%clk 0:00:57]}  axb4 {[%clk 0:01:29]} 24. axb4 {[%clk 0:00:57]}  d4 {[%clk 0:01:24]} 25. Bd2 {[%clk 0:00:57]}  Qd5 {[%clk 0:01:18]} 26. Rxe8+ {[%clk 0:00:50]}  Rxe8 {[%clk 0:01:17]} 27. b5 {[%clk 0:00:50]}  Ne5 {[%clk 0:01:06]} 28. Bf4 {[%clk 0:00:48]}  d3 {[%clk 0:00:54]} 29. Qc3 {[%clk 0:00:47]}  Nc4 {[%clk 0:00:41]} 30. Rd1 {[%clk 0:00:36]}  Qe4 {[%clk 0:00:32]} 31. Rxd3 {[%clk 0:00:11]}  Qxf4 {[%clk 0:00:23]} 32. Rd4 {[%clk 0:00:12]}  Re1+ {[%clk 0:00:20]} 33. Qxe1 {[%clk 0:00:08]}  Qxd4 {[%clk 0:00:20]} 34. Qe8+ {[%clk 0:00:09]}  Kh7 {[%clk 0:00:19]} 35. Qxf7 {[%clk 0:00:10]}  Qxc5 {[%clk 0:00:17]} 36. Qxb7 {[%clk 0:00:10]}  Nd6 {[%clk 0:00:16]} 37. Qc6 {[%clk 0:00:06]}  Qxc6 {[%clk 0:00:11]} 38. bxc6 {[%clk 0:00:07]}  Nb5 {[%clk 0:00:11]} 39. f4 {[%clk 0:00:06]}  Kg8 {[%clk 0:00:10]} 40. Kf2 {[%clk 0:00:06]}  Kf7 {[%clk 0:00:11]} 41. Kg3 {[%clk 0:00:05]}  Ke6 {[%clk 0:00:09]} 42. Kg4 {[%clk 0:00:05]}  Nd6 {[%clk 0:00:05]} 43. Kg5 {[%clk 0:00:05]}  Kf7 {[%clk 0:00:05]} 44. c7 {[%clk 0:00:05]}  Ne4+ {[%clk 0:00:04]} 45. Kg4 {[%clk 0:00:05]}  Nf6+ {[%clk 0:00:03]} 46. Kg5 {[%clk 0:00:05]}  Ne4+ {[%clk 0:00:03]} 47. Kg4 {[%clk 0:00:05]}  Nd6 {[%clk 0:00:04]} 48. Kg5 {[%clk 0:00:04]}  Ne4+ {[%clk 0:00:04]} 1/2-1/2


[Site "https://www.chess.com"]

[Event "Titled Tuesday Blitz February 28 Early 2023"]
[White "Levitan, Caleb Levi"]
[Black "Buchenau, Frank"]
[WhiteFideId "14332620"]
[BlackFideId "4604350"]
[WhiteElo "1963"]
[BlackElo "2157"]
[Result "0-1"]
[Round "07"]
[TimeControl "180+2"]
[Date "2023.02.28"]
[WhiteClock "0:00:03"]
[BlackClock "0:00:06"]

1. d4 {[%clk 0:02:59]}  e6 {[%clk 0:02:59]} 2. Bf4 {[%clk 0:02:58]}  Nf6 {[%clk 0:02:58]} 3. e3 {[%clk 0:02:56]}  d5 {[%clk 0:02:57]} 4. Nd2 {[%clk 0:02:56]}  c5 {[%clk 0:02:57]} 5. c3 {[%clk 0:02:55]}  Nc6 {[%clk 0:02:57]} 6. Ngf3 {[%clk 0:02:55]}  Bd6 {[%clk 0:02:56]} 7. Bg3 {[%clk 0:02:54]}  O-O {[%clk 0:02:55]} 8. Bd3 {[%clk 0:02:54]}  b6 {[%clk 0:02:55]} 9. e4 {[%clk 0:02:53]}  Be7 {[%clk 0:02:51]} 10. O-O {[%clk 0:02:42]}  cxd4 {[%clk 0:02:48]} 11. cxd4 {[%clk 0:02:39]}  Nb4 {[%clk 0:02:38]} 12. Bb1 {[%clk 0:02:32]}  Ba6 {[%clk 0:02:37]} 13. Re1 {[%clk 0:02:18]}  Nd3 {[%clk 0:02:32]} 14. Re3 {[%clk 0:01:49]}  Nxb2 {[%clk 0:02:30]} 15. Qc2 {[%clk 0:01:49]}  Nc4 {[%clk 0:02:27]} 16. Nxc4 {[%clk 0:01:46]}  Rc8 {[%clk 0:01:58]} 17. e5 {[%clk 0:00:59]}  Rxc4 {[%clk 0:01:50]} 18. Qd1 {[%clk 0:00:56]}  Ne4 {[%clk 0:01:23]} 19. Bd3 {[%clk 0:00:47]}  Qc8 {[%clk 0:00:44]} 20. Bxc4 {[%clk 0:00:43]}  Bxc4 {[%clk 0:00:40]} 21. Nd2 {[%clk 0:00:38]}  Nxd2 {[%clk 0:00:36]} 22. Qxd2 {[%clk 0:00:38]}  b5 {[%clk 0:00:34]} 23. f4 {[%clk 0:00:29]}  b4 {[%clk 0:00:31]} 24. Be1 {[%clk 0:00:19]}  a5 {[%clk 0:00:30]} 25. a3 {[%clk 0:00:19]}  Qc6 {[%clk 0:00:18]} 26. axb4 {[%clk 0:00:16]}  axb4 {[%clk 0:00:18]} 27. Qb2 {[%clk 0:00:14]}  b3 {[%clk 0:00:17]} 28. Rc1 {[%clk 0:00:13]}  Qa6 {[%clk 0:00:16]} 29. Ra1 {[%clk 0:00:11]}  Qb5 {[%clk 0:00:15]} 30. Rc3 {[%clk 0:00:10]}  Bd8 {[%clk 0:00:14]} 31. Rcc1 {[%clk 0:00:09]}  Bb6 {[%clk 0:00:13]} 32. Bc3 {[%clk 0:00:09]}  f6 {[%clk 0:00:11]} 33. h3 {[%clk 0:00:05]}  fxe5 {[%clk 0:00:10]} 34. fxe5 {[%clk 0:00:06]}  Rf4 {[%clk 0:00:10]} 35. Bd2 {[%clk 0:00:05]}  Bxd4+ {[%clk 0:00:07]} 36. Qxd4 {[%clk 0:00:04]}  Rxd4 {[%clk 0:00:08]} 37. Ra8+ {[%clk 0:00:04]}  Kf7 {[%clk 0:00:08]} 38. Ra7+ {[%clk 0:00:04]}  Kg6 {[%clk 0:00:08]} 39. Be3 {[%clk 0:00:02]}  Re4 {[%clk 0:00:07]} 40. Bd2 {[%clk 0:00:02]}  b2 {[%clk 0:00:07]} 41. Rb1 {[%clk 0:00:01]}  Bd3 {[%clk 0:00:07]} 42. Re1 {[%clk 0:00:01]}  Rxe1+ {[%clk 0:00:06]} 43. Bxe1 {[%clk 0:00:02]}  b1=Q {[%clk 0:00:07]} 44. Kf2 {[%clk 0:00:03]}  Qc5+ {[%clk 0:00:06]} 45. Kg3 {[%clk 0:00:04]}  Qxa7 {[%clk 0:00:06]} 46. Bd2 {[%clk 0:00:03]}  Qag1 {[%clk 0:00:05]} 47. Bf4 {[%clk 0:00:03]}  Qbf1 {[%clk 0:00:06]} 48. Kg4 {[%clk 0:00:03]}  Qfxg2+ {[%clk 0:00:07]} 49. Kh4 {[%clk 0:00:03]}  Q1f2+ {[%clk 0:00:07]} 50. Bg3 {[%clk 0:00:03]}  Qfxg3# {[%clk 0:00:06]} 0-1


[Site "https://www.chess.com"]

[Event "Titled Tuesday Blitz February 28 Early 2023"]
[White "Lauridsen, Jesper Morch"]
[Black "Balint, Vilmos"]
[WhiteFideId "1401890"]
[BlackFideId "718050"]
[WhiteElo "2257"]
[BlackElo "2034"]
[Result "1/2-1/2"]
[Round "07"]
[TimeControl "180+2"]
[Date "2023.02.28"]
[WhiteClock "0:00:06"]
[BlackClock "0:01:03"]

1. e4 {[%clk 0:03:00]}  e6 {[%clk 0:02:55]} 2. c4 {[%clk 0:02:59]}  d5 {[%clk 0:02:55]} 3. cxd5 {[%clk 0:02:59]}  exd5 {[%clk 0:02:56]} 4. Qb3 {[%clk 0:02:59]}  dxe4 {[%clk 0:02:50]} 5. Bc4 {[%clk 0:02:59]}  Qe7 {[%clk 0:02:51]} 6. Nc3 {[%clk 0:02:59]}  c6 {[%clk 0:02:50]} 7. Nge2 {[%clk 0:02:21]}  b5 {[%clk 0:02:50]} 8. Nxb5 {[%clk 0:02:19]}  cxb5 {[%clk 0:02:50]} 9. Bxb5+ {[%clk 0:02:19]}  Bd7 {[%clk 0:02:51]} 10. Qd5 {[%clk 0:02:11]}  Bxb5 {[%clk 0:02:51]} 11. Qxa8 {[%clk 0:02:09]}  Qc7 {[%clk 0:02:43]} 12. Qxe4+ {[%clk 0:02:04]}  Be7 {[%clk 0:02:44]} 13. Nc3 {[%clk 0:01:57]}  Bc6 {[%clk 0:02:38]} 14. Qe2 {[%clk 0:01:30]}  Bxg2 {[%clk 0:02:34]} 15. Rg1 {[%clk 0:01:30]}  Bc6 {[%clk 0:02:34]} 16. d4 {[%clk 0:01:23]}  Nf6 {[%clk 0:02:34]} 17. Rxg7 {[%clk 0:01:15]}  Qxh2 {[%clk 0:02:29]} 18. Bg5 {[%clk 0:01:10]}  Qh1+ {[%clk 0:02:14]} 19. Qf1 {[%clk 0:01:05]}  Qxf1+ {[%clk 0:02:10]} 20. Kxf1 {[%clk 0:01:04]}  h6 {[%clk 0:02:02]} 21. Bh4 {[%clk 0:00:51]}  Nh5 {[%clk 0:01:54]} 22. Rg4 {[%clk 0:00:29]}  Bf3 {[%clk 0:01:52]} 23. Re1 {[%clk 0:00:20]}  Bxg4 {[%clk 0:01:52]} 24. Rxe7+ {[%clk 0:00:20]}  Kf8 {[%clk 0:01:51]} 25. Rxa7 {[%clk 0:00:18]}  Kg7 {[%clk 0:01:48]} 26. Ne4 {[%clk 0:00:15]}  Re8 {[%clk 0:01:46]} 27. Rxf7+ {[%clk 0:00:12]}  Kxf7 {[%clk 0:01:46]} 28. Nd6+ {[%clk 0:00:12]}  Kf8 {[%clk 0:01:47]} 29. Nxe8 {[%clk 0:00:11]}  Kxe8 {[%clk 0:01:47]} 30. a4 {[%clk 0:00:08]}  Nf4 {[%clk 0:01:43]} 31. Bg3 {[%clk 0:00:07]}  Bh3+ {[%clk 0:01:30]} 32. Ke1 {[%clk 0:00:07]}  Ng2+ {[%clk 0:01:29]} 33. Kd2 {[%clk 0:00:07]}  Nd7 {[%clk 0:01:28]} 34. a5 {[%clk 0:00:07]}  h5 {[%clk 0:01:25]} 35. a6 {[%clk 0:00:07]}  h4 {[%clk 0:01:26]} 36. a7 {[%clk 0:00:07]}  Nb6 {[%clk 0:01:26]} 37. Be5 {[%clk 0:00:03]}  Be6 {[%clk 0:01:21]} 38. Bf6 {[%clk 0:00:03]}  h3 {[%clk 0:01:20]} 39. Be5 {[%clk 0:00:04]}  Kd7 {[%clk 0:01:20]} 40. Bh2 {[%clk 0:00:03]}  Bd5 {[%clk 0:01:20]} 41. Kc3 {[%clk 0:00:03]}  Ne1 {[%clk 0:01:20]} 42. Kb4 {[%clk 0:00:03]}  Kc6 {[%clk 0:01:20]} 43. Ka5 {[%clk 0:00:02]}  Kb7 {[%clk 0:01:21]} 44. a8=Q+ {[%clk 0:00:01]}  Nxa8 {[%clk 0:01:20]} 45. f4 {[%clk 0:00:01]}  Nf3 {[%clk 0:01:20]} 46. Bg3 {[%clk 0:00:02]}  h2 {[%clk 0:01:20]} 47. Bxh2 {[%clk 0:00:02]}  Nxh2 {[%clk 0:01:21]} 48. f5 {[%clk 0:00:02]}  Ng4 {[%clk 0:01:21]} 49. Kb5 {[%clk 0:00:02]}  Nf6 {[%clk 0:01:22]} 50. Kc5 {[%clk 0:00:02]}  Kc7 {[%clk 0:01:22]} 51. b4 {[%clk 0:00:02]}  Nb6 {[%clk 0:01:23]} 52. b5 {[%clk 0:00:03]}  Nc4 {[%clk 0:01:21]} 53. Kb4 {[%clk 0:00:02]}  Kb6 {[%clk 0:01:22]} 54. Kc3 {[%clk 0:00:02]}  Kxb5 {[%clk 0:01:22]} 55. Kd3 {[%clk 0:00:03]}  Kc6 {[%clk 0:01:23]} 56. Ke2 {[%clk 0:00:02]}  Kd6 {[%clk 0:01:24]} 57. Kf2 {[%clk 0:00:03]}  Nb6 {[%clk 0:01:21]} 58. Kg3 {[%clk 0:00:03]}  Be4 {[%clk 0:01:22]} 59. Kf4 {[%clk 0:00:03]}  Kd5 {[%clk 0:01:23]} 60. Kg5 {[%clk 0:00:03]}  Nbd7 {[%clk 0:01:24]} 61. Kg6 {[%clk 0:00:03]}  Kxd4 {[%clk 0:01:25]} 62. Kf7 {[%clk 0:00:03]}  Ke5 {[%clk 0:01:26]} 63. Ke7 {[%clk 0:00:03]}  Kxf5 {[%clk 0:01:26]} 64. Kd6 {[%clk 0:00:04]}  Ne5 {[%clk 0:01:26]} 65. Kc5 {[%clk 0:00:03]}  Ke6 {[%clk 0:01:26]} 66. Kd4 {[%clk 0:00:04]}  Bd5 {[%clk 0:01:25]} 67. Ke3 {[%clk 0:00:04]}  Kf5 {[%clk 0:01:25]} 68. Kd4 {[%clk 0:00:04]}  Kf4 {[%clk 0:01:23]} 69. Kc5 {[%clk 0:00:05]}  Ke4 {[%clk 0:01:24]} 70. Kd6 {[%clk 0:00:05]}  Nfg4 {[%clk 0:01:23]} 71. Ke7 {[%clk 0:00:05]}  Nc4 {[%clk 0:01:22]} 72. Kf8 {[%clk 0:00:05]}  Ke5 {[%clk 0:01:23]} 73. Kg7 {[%clk 0:00:05]}  Kf5 {[%clk 0:01:22]} 74. Kh7 {[%clk 0:00:05]}  Kf6 {[%clk 0:01:23]} 75. Kh8 {[%clk 0:00:05]}  Nce5 {[%clk 0:01:23]} 76. Kh7 {[%clk 0:00:05]}  Ne3 {[%clk 0:01:21]} 77. Kh8 {[%clk 0:00:06]}  Nf5 {[%clk 0:01:22]} 78. Kh7 {[%clk 0:00:06]}  Be6 {[%clk 0:01:21]} 79. Kh8 {[%clk 0:00:06]}  Ng6+ {[%clk 0:01:20]} 80. Kh7 {[%clk 0:00:07]}  Nf8+ {[%clk 0:01:19]} 81. Kh8 {[%clk 0:00:07]}  Nd7 {[%clk 0:01:18]} 82. Kh7 {[%clk 0:00:07]}  Nd6 {[%clk 0:01:18]} 83. Kh6 {[%clk 0:00:08]}  Bg4 {[%clk 0:01:17]} 84. Kh7 {[%clk 0:00:08]}  Bh5 {[%clk 0:01:14]} 85. Kg8 {[%clk 0:00:08]}  Bf7+ {[%clk 0:01:13]} 86. Kh7 {[%clk 0:00:08]}  Nf8+ {[%clk 0:01:13]} 87. Kh8 {[%clk 0:00:08]}  Ng6+ {[%clk 0:01:13]} 88. Kh7 {[%clk 0:00:07]}  Be6 {[%clk 0:01:08]} 89. Kh6 {[%clk 0:00:07]}  Nf5+ {[%clk 0:01:08]} 90. Kh5 {[%clk 0:00:07]}  Nf4+ {[%clk 0:01:08]} 91. Kg4 {[%clk 0:00:07]}  Ke5 {[%clk 0:01:09]} 92. Kg5 {[%clk 0:00:07]}  Nd4 {[%clk 0:01:07]} 93. Kh4 {[%clk 0:00:07]}  Nde2 {[%clk 0:01:03]} 94. Kg5 {[%clk 0:00:06]}  Bf5 {[%clk 0:01:03]} 95. Kh6 {[%clk 0:00:06]}  Kf6 {[%clk 0:01:03]} 1/2-1/2


[Site "https://www.chess.com"]

[Event "Titled Tuesday Blitz February 28 Early 2023"]
[White "Ardila, Oscar Humberto"]
[Black "Zhukova, Natalia"]
[WhiteFideId "4404742"]
[BlackFideId "14101513"]
[WhiteElo "1946"]
[BlackElo "2297"]
[Result "0-1"]
[Round "07"]
[TimeControl "180+2"]
[Date "2023.02.28"]
[WhiteClock "0:00:06"]
[BlackClock "0:00:09"]

1. d4 {[%clk 0:03:00]}  Nf6 {[%clk 0:02:59]} 2. c4 {[%clk 0:03:00]}  c5 {[%clk 0:02:59]} 3. dxc5 {[%clk 0:02:58]}  e6 {[%clk 0:02:57]} 4. Nf3 {[%clk 0:02:58]}  Bxc5 {[%clk 0:02:56]} 5. e3 {[%clk 0:02:59]}  O-O {[%clk 0:02:55]} 6. Be2 {[%clk 0:02:59]}  d5 {[%clk 0:02:54]} 7. cxd5 {[%clk 0:02:59]}  exd5 {[%clk 0:02:55]} 8. O-O {[%clk 0:02:59]}  Nc6 {[%clk 0:02:55]} 9. Nc3 {[%clk 0:02:59]}  a6 {[%clk 0:02:54]} 10. Nd4 {[%clk 0:02:41]}  Re8 {[%clk 0:02:50]} 11. Nxc6 {[%clk 0:02:34]}  bxc6 {[%clk 0:02:49]} 12. Bf3 {[%clk 0:02:34]}  Bd6 {[%clk 0:02:35]} 13. Bd2 {[%clk 0:02:28]}  h5 {[%clk 0:02:28]} 14. h3 {[%clk 0:02:28]}  Qe7 {[%clk 0:02:21]} 15. Ne2 {[%clk 0:02:03]}  Ne4 {[%clk 0:01:58]} 16. Bxe4 {[%clk 0:01:56]}  Qxe4 {[%clk 0:01:55]} 17. Bc3 {[%clk 0:01:53]}  c5 {[%clk 0:01:26]} 18. Nf4 {[%clk 0:01:44]}  d4 {[%clk 0:01:16]} 19. Bd2 {[%clk 0:01:33]}  Bxf4 {[%clk 0:00:55]} 20. exf4 {[%clk 0:01:31]}  Bb7 {[%clk 0:00:55]} 21. f3 {[%clk 0:01:23]}  Qd5 {[%clk 0:00:56]} 22. Be1 {[%clk 0:01:09]}  c4 {[%clk 0:00:53]} 23. Bf2 {[%clk 0:01:07]}  Rad8 {[%clk 0:00:53]} 24. Re1 {[%clk 0:01:07]}  Rxe1+ {[%clk 0:00:49]} 25. Qxe1 {[%clk 0:01:06]}  Qf5 {[%clk 0:00:43]} 26. Qe5 {[%clk 0:01:05]}  Qxe5 {[%clk 0:00:19]} 27. fxe5 {[%clk 0:01:05]}  c3 {[%clk 0:00:18]} 28. bxc3 {[%clk 0:01:00]}  dxc3 {[%clk 0:00:19]} 29. Be3 {[%clk 0:00:57]}  Bd5 {[%clk 0:00:18]} 30. Rc1 {[%clk 0:00:55]}  Rc8 {[%clk 0:00:17]} 31. a4 {[%clk 0:00:54]}  Bb3 {[%clk 0:00:16]} 32. a5 {[%clk 0:00:54]}  c2 {[%clk 0:00:16]} 33. Kf2 {[%clk 0:00:54]}  Kf8 {[%clk 0:00:13]} 34. f4 {[%clk 0:00:53]}  Ke7 {[%clk 0:00:12]} 35. Ke2 {[%clk 0:00:47]}  Ke6 {[%clk 0:00:12]} 36. Kf3 {[%clk 0:00:47]}  Bd5+ {[%clk 0:00:10]} 37. Kf2 {[%clk 0:00:46]}  Kf5 {[%clk 0:00:11]} 38. g3 {[%clk 0:00:43]}  Rc3 {[%clk 0:00:09]} 39. Re1 {[%clk 0:00:37]}  Ra3 {[%clk 0:00:06]} 40. Rc1 {[%clk 0:00:35]}  Be4 {[%clk 0:00:06]} 41. Re1 {[%clk 0:00:18]}  Rxa5 {[%clk 0:00:05]} 42. Rg1 {[%clk 0:00:17]}  Ra4 {[%clk 0:00:04]} 43. g4+ {[%clk 0:00:18]}  hxg4 {[%clk 0:00:04]} 44. hxg4+ {[%clk 0:00:18]}  Ke6 {[%clk 0:00:05]} 45. Rc1 {[%clk 0:00:17]}  Kd5 {[%clk 0:00:05]} 46. Bd2 {[%clk 0:00:14]}  Kc4 {[%clk 0:00:04]} 47. Ke3 {[%clk 0:00:14]}  Kb3 {[%clk 0:00:05]} 48. f5 {[%clk 0:00:11]}  Rc4 {[%clk 0:00:05]} 49. e6 {[%clk 0:00:11]}  fxe6 {[%clk 0:00:05]} 50. fxe6 {[%clk 0:00:11]}  Bg6 {[%clk 0:00:06]} 51. e7 {[%clk 0:00:06]}  Re4+ {[%clk 0:00:06]} 52. Kf3 {[%clk 0:00:06]}  Rxe7 {[%clk 0:00:07]} 53. Bg5 {[%clk 0:00:06]}  Rf7+ {[%clk 0:00:07]} 54. Ke3 {[%clk 0:00:06]}  a5 {[%clk 0:00:08]} 55. Kd4 {[%clk 0:00:06]}  a4 {[%clk 0:00:08]} 56. Kc5 {[%clk 0:00:07]}  a3 {[%clk 0:00:09]} 57. Kb5 {[%clk 0:00:07]}  Rb7+ {[%clk 0:00:09]} 58. Ka5 {[%clk 0:00:06]}  Rb8 {[%clk 0:00:09]} 59. Bf4 {[%clk 0:00:06]}  Ra8+ {[%clk 0:00:08]} 60. Kb5 {[%clk 0:00:06]}  a2 {[%clk 0:00:09]} 61. Be5 {[%clk 0:00:07]}  Re8 {[%clk 0:00:08]} 62. Bd4 {[%clk 0:00:06]}  Rd8 {[%clk 0:00:08]} 63. Bxg7 {[%clk 0:00:06]}  Rd1 {[%clk 0:00:08]} 64. Bh6 {[%clk 0:00:06]}  Rxc1 {[%clk 0:00:08]} 65. Bxc1 {[%clk 0:00:06]}  a1=Q {[%clk 0:00:09]} 66. g5 {[%clk 0:00:06]}  Qe5+ {[%clk 0:00:09]} 0-1


[Site "https://www.chess.com"]

[Event "Titled Tuesday Blitz February 28 Early 2023"]
[White "Hertlein, Irena"]
[Black "Bogaudinov, Rushan"]
[WhiteFideId "21817618"]
[BlackFideId "4129288"]
[WhiteElo "1776"]
[BlackElo "2063"]
[Result "0-1"]
[Round "07"]
[TimeControl "180+2"]
[Date "2023.02.28"]
[WhiteClock "0:00:16"]
[BlackClock "0:02:00"]

1. Nf3 {[%clk 0:03:00]}  d5 {[%clk 0:02:59]} 2. e3 {[%clk 0:02:58]}  Nf6 {[%clk 0:02:59]} 3. c4 {[%clk 0:02:57]}  e6 {[%clk 0:02:58]} 4. b3 {[%clk 0:02:57]}  a5 {[%clk 0:02:58]} 5. Nc3 {[%clk 0:02:53]}  Be7 {[%clk 0:02:57]} 6. Bb2 {[%clk 0:02:53]}  O-O {[%clk 0:02:57]} 7. Be2 {[%clk 0:02:44]}  b6 {[%clk 0:02:56]} 8. cxd5 {[%clk 0:02:43]}  exd5 {[%clk 0:02:56]} 9. d4 {[%clk 0:02:36]}  c5 {[%clk 0:02:51]} 10. O-O {[%clk 0:02:34]}  Nc6 {[%clk 0:02:48]} 11. dxc5 {[%clk 0:02:33]}  bxc5 {[%clk 0:02:49]} 12. Rc1 {[%clk 0:02:26]}  Bg4 {[%clk 0:02:41]} 13. Na4 {[%clk 0:02:23]}  Ne4 {[%clk 0:02:36]} 14. h3 {[%clk 0:02:21]}  Be6 {[%clk 0:02:34]} 15. Nd2 {[%clk 0:02:20]}  Nb4 {[%clk 0:02:34]} 16. Nxe4 {[%clk 0:02:15]}  dxe4 {[%clk 0:02:35]} 17. Qxd8 {[%clk 0:01:54]}  Rfxd8 {[%clk 0:02:35]} 18. Nxc5 {[%clk 0:01:54]}  Bxc5 {[%clk 0:02:33]} 19. Rxc5 {[%clk 0:01:53]}  Rd2 {[%clk 0:02:27]} 20. Bc3 {[%clk 0:01:05]}  Rxe2 {[%clk 0:02:26]} 21. Bxb4 {[%clk 0:01:05]}  axb4 {[%clk 0:02:26]} 22. Rb5 {[%clk 0:01:06]}  Rexa2 {[%clk 0:02:26]} 23. Rxb4 {[%clk 0:01:05]}  f5 {[%clk 0:02:25]} 24. g4 {[%clk 0:01:03]}  Ra1 {[%clk 0:02:20]} 25. gxf5 {[%clk 0:01:02]}  Bxf5 {[%clk 0:02:20]} 26. Rb7 {[%clk 0:00:52]}  Bxh3 {[%clk 0:02:16]} 27. Rxa1 {[%clk 0:00:51]}  Rxa1+ {[%clk 0:02:17]} 28. Kh2 {[%clk 0:00:51]}  Bf5 {[%clk 0:02:13]} 29. Kg3 {[%clk 0:00:51]}  Rb1 {[%clk 0:02:12]} 30. b4 {[%clk 0:00:51]}  g5 {[%clk 0:02:09]} 31. Rb5 {[%clk 0:00:50]}  Bg6 {[%clk 0:02:09]} 32. Rb8+ {[%clk 0:00:46]}  Kg7 {[%clk 0:02:09]} 33. b5 {[%clk 0:00:47]}  h5 {[%clk 0:02:08]} 34. b6 {[%clk 0:00:45]}  Bf5 {[%clk 0:02:06]} 35. Rb7+ {[%clk 0:00:22]}  Kh6 {[%clk 0:02:05]} 36. Rb8 {[%clk 0:00:21]}  h4+ {[%clk 0:02:05]} 37. Kg2 {[%clk 0:00:21]}  Bg4 {[%clk 0:02:00]} 38. b7 {[%clk 0:00:16]}  Bf3+ {[%clk 0:02:00]} 0-1


[Site "https://www.chess.com"]